fUSD/lending_fUSD_20250415
["ID","MTS","AMOUNT","RATE_DAILY","PERIOD"]
[358103494,1744718903826,-150.0,0.00050249,120]
[358103495,1744718903852,-152.88330942,0.00050249,120]
[358103496,1744718903880,-500.0,0.00050249,120]
[358103497,1744718903906,-500.0,0.00050249,120]
[358103498,1744718903932,-500.0,0.00050249,120]
[358103499,1744718903958,-593.06038431,0.00050249,120]
[358103500,1744718903986,-500.0,0.00050249,120]
[358103501,1744718904013,-585.0191079,0.00050249,120]
[358103502,1744718904039,-500.0,0.00050249,120]
[358103503,1744718904065,-500.0,0.00050249,120]
[358103504,1744718904090,-500.0,0.00050249,120]
[358103505,1744718904115,-500.0,0.00050249,120]
[358103506,1744718904141,-466.9868813,0.00050249,120]
[358103507,1744718904166,-150.0,0.00050249,120]
[358103508,1744718904191,-150.0,0.00050249,120]
[358103509,1744718904216,-150.0,0.00050249,120]
[358103510,1744718904242,-150.0,0.00050249,120]
[358103511,1744718904268,-150.0,0.00050249,120]
[358103512,1744718904294,-161.0,0.00050249,120]
[358103513,1744718904322,-120385.06889577,0.0005025,120]
[358103514,1744718904347,-150.0,0.0005025,120]
[358103515,1744718904372,-150.0,0.0005025,30]
[358103516,1744718904397,-150.0,0.0005025,30]
[358103517,1744718904422,-154.814,0.0005025,30]
[358103518,1744718904449,-10000.0,0.000503,120]
[358103519,1744718904476,-150.0,0.00050458,120]
[358103520,1744718904505,-1000000.0,0.000505,120]
[358103521,1744718904532,-1000000.0,0.000505,120]
[358103522,1744718904559,-1000000.0,0.000505,120]
[358103523,1744718904583,-832.14856648,0.00050684,120]
[358103524,1744718904609,-150.0,0.00050822,120]
[358103525,1744718904636,-150.0,0.00050882,120]
[358103526,1744718904665,-50000.0,0.00051,51]
[358103527,1744718904694,-50000.0,0.00051,61]
[358103528,1744718904723,-757228.03386547,0.00051,120]
[358103529,1744718909665,-242771.96613453,0.00051,120]
[358103530,1744718909694,-1000000.0,0.00051,120]
[358103531,1744718909723,-1000000.0,0.00051,120]
[358103532,1744718909750,-10000.0,0.00051,120]
[358103533,1744718909776,-2000.0,0.00051,120]
[358103534,1744718909803,-10000.0,0.00051,120]
[358103535,1744718909833,-1000000.0,0.00051,120]
[358103536,1744718909861,-151.0,0.00051,106]
[358103537,1744718909889,-150.0,0.00051,51]
[358103538,1744718909917,-150.0,0.00051215,120]
[358103539,1744718909945,-327.0,0.0005126,120]
[358103540,1744718909973,-21741.029,0.00051275,120]
[358103541,1744718910000,-21741.029,0.00051275,120]
[358103542,1744718910028,-21741.03,0.00051275,120]
[358103543,1744718910055,-21741.029,0.00051275,120]
[358103544,1744718910083,-21741.029,0.00051275,120]
[358103545,1744718910110,-150.0,0.00051283,120]
[358103546,1744718910136,-150.0,0.00051478,120]
[358103547,1744718910162,-5020.15472088,0.000515,120]
[358103548,1744718910190,-620424.73314459,0.000515,120]
[358103549,1744718913506,-379575.26685541,0.000515,120]
[358103550,1744718913537,-1000000.0,0.000515,120]
[358103551,1744718913568,-1000000.0,0.000515,120]
[358103552,1744718913599,-1000000.0,0.000515,120]
[358103553,1744718913628,-620424.73314459,0.000515,120]
[358103554,1744718916700,-379575.26685541,0.000515,120]
[358103555,1744718916729,-1000000.0,0.000515,120]
[358103556,1744718916755,-150.0,0.000515,120]
[358103557,1744718916783,-150.0,0.00051763,120]
[358103558,1744718916811,-430.41,0.00051877,120]
[358103559,1744718916837,-327.0,0.00051983,120]
[358103560,1744718916863,-1000.0,0.00051993,30]
[358103561,1744718916888,-1000.0,0.00051999,120]
[358103562,1744718916917,-50000.0,0.00052,52]
[358103563,1744718916945,-50000.0,0.00052,62]
[358103564,1744718916976,-900000.0,0.00052,120]
[358103565,1744718917006,-1000000.0,0.00052,120]
[358103566,1744718917036,-617367.32314459,0.00052,120]
[358103567,1744718919703,-382632.67685541,0.00052,120]
[358103568,1744718919734,-1000000.0,0.00052,120]
[358103569,1744718919766,-1000000.0,0.00052,120]
[358103570,1744718919796,-97160.82,0.00052,60]
[358103571,1744718919824,-3533.20755335,0.00052,30]
[358103572,1744718919851,-1000000.0,0.00052,120]
[358103573,1744718919884,-10000.0,0.00052,120]
[358103574,1744718919911,-462.63901388,0.00052,120]
[358103575,1744718919939,-9805.51285543,0.00052,120]
[358103576,1744718919967,-2000.0,0.00052,120]
[358103577,1744718919997,-217.0,0.00052,120]
[358103578,1744718920028,-400.0,0.00052,120]
[358103579,1744718920054,-50000.009998,0.00052,30]
[358103580,1744718920079,-1100.0,0.00052,120]
[358103581,1744718920105,-10000.0,0.00052,120]
[358103582,1744718920130,-151.0,0.00052,120]
[358103583,1744718920156,-770.08716838,0.00052,30]
[358103584,1744718920180,-151.0,0.00052,120]
[358103585,1744718920206,-18037.0,0.00052,120]
[358103586,1744718920231,-151.0,0.00052,107]
[358103587,1744718920258,-763.51862092,0.000522,60]
[358103588,1744718920286,-150.0,0.00052262,120]
[358103589,1744718920313,-150.63,0.00052375,30]
[358103590,1744718920343,-412363.89793463,0.000525,120]
[358103591,1744718952568,-155.0,0.00044,90]
[358103592,1744718952596,-155.0,0.00046027,90]
[358103593,1744718952632,-99835.02574776,0.00051,120]
[358103594,1744718952662,-1000000.0,0.00051,120]
[358103595,1744718952691,-1000000.0,0.000515,120]
[358103596,1744718952719,-1000000.0,0.00052,120]
[358103597,1744718952748,-587636.10206537,0.000525,120]
[358103598,1744718952776,-5000.0,0.000525,120]
[358103599,1744718952803,-150.0,0.000525,120]
[358103600,1744718952830,-150.0,0.00052701,120]
[358103601,1744718952859,-150.0,0.00052733,120]
[358103602,1744718952886,-150.0,0.00052783,120]
[358103603,1744718952913,-151.0,0.00052986,120]
[358103604,1744718952944,-50000.0,0.00053,53]
[358103605,1744718952975,-50000.0,0.00053,63]
[358103606,1744718953010,-1000000.0,0.00053,120]
[358103607,1744718953041,-1000000.0,0.00053,120]
[358103608,1744718953072,-206467.87218687,0.00053,120]
[358103609,1744718957384,-1000000.0,0.000505,120]
[358103610,1744718957414,-793532.12781313,0.00053,120]
[358103611,1744718957443,-1000000.0,0.00053,120]
[358103612,1744718957470,-10000.0,0.00053,120]
[358103613,1744718957497,-3636.91319252,0.00053,30]
[358103614,1744718957523,-2000.0,0.00053,120]
[358103615,1744718957553,-10000.0,0.00053,120]
[358103616,1744718957579,-3018.04175129,0.00053,120]
[358103617,1744718957606,-5564.31729651,0.00053,120]
[358103618,1744718957632,-151.0,0.00053,108]
[358103619,1744718957658,-150.0,0.00053,53]
[358103620,1744718957683,-4644.72188,0.00053088,30]
[358103621,1744718957708,-327.0,0.00053158,120]
[358103622,1744718957734,-150.0,0.00053257,120]
[358103623,1744718957761,-150.0,0.00053407,120]
[358103624,1744718957795,-504.5,0.00053424,30]
[358103625,1744718957825,-1000000.0,0.000535,120]
[358103626,1744718957852,-1088.237148,0.000535,120]
[358103627,1744718957880,-150.0,0.00053525,120]
[358103628,1744718957908,-151.0,0.00053644,120]
[358103629,1744718957938,-322474.9437883,0.000537,30]
[358103630,1744718957966,-2879.02,0.0005389,67]
[358103631,1744718957997,-482.45641999,0.00053898,120]
[358103632,1744718958028,-191.12935459,0.00053898,120]
[358103633,1744718958060,-504.5,0.00053972,32]
[358103634,1744718958089,-151.0,0.00053973,120]
[358103635,1744718958117,-104000.0,0.0005399,120]
[358103636,1744718958147,-50000.0,0.00054,54]
[358103637,1744718958176,-50000.0,0.00054,64]
[358103638,1744718958203,-3739.19131106,0.00054,120]
[358103639,1744718958232,-1000000.0,0.00054,120]
[358103640,1744718958263,-630359.90004461,0.00054,120]
[358103641,1744718969654,1293.27,0.00015472,2]
[358103642,1744718971544,-369640.09995539,0.00054,120]
[358103643,1744718971573,-1000000.0,0.00054,120]
[358103644,1744718971600,-1000.0,0.00054,120]
[358103645,1744718971626,-2783.59187658,0.00054,120]
[358103646,1744718971652,-957.55553948,0.00054,120]
[358103647,1744718971677,-273.21884483,0.00054,120]
[358103648,1744718971702,-10000.0,0.00054,120]
[358103649,1744718971728,-500.0,0.00054,120]
[358103650,1744718971754,-2000.0,0.00054,120]
[358103651,1744718971780,-400.0,0.00054,120]
[358103652,1744718971808,-1000.0,0.00054,120]
[358103653,1744718971836,-10000.0,0.00054,120]
[358103654,1744718971863,-4969.71898181,0.00054,120]
[358103655,1744718971890,-272.49956674,0.00054,120]
[358103656,1744718971917,-18037.0,0.00054,120]
[358103657,1744718971943,-159.09821311,0.00054,120]
[358103658,1744718971968,-250000.0,0.00054,120]
[358103659,1744718971996,-262.777479,0.00054,120]
[358103660,1744718972023,-151.0,0.00054,109]
[358103661,1744718972048,-150.0,0.00054,54]
[358103662,1744718972074,-1000.0,0.0005407,120]
[358103663,1744718972101,-327.0,0.00054243,120]
[358103664,1744718972126,-313517.36130138,0.000543,120]
[358103665,1744718972151,-163.88795652,0.00054321,120]
[358103666,1744718972177,-150.0,0.00054477,120]
[358103667,1744718972203,-278.55147702,0.00054495,30]
[358103668,1744718972229,-2000.0,0.000545,120]
[358103669,1744718972271,-6227.33546907,0.000545,120]
[358103670,1744718972300,-504.5,0.0005452,34]
[358103671,1744718972327,-150.0,0.00054521,120]
[358103672,1744718972355,-1495.88909705,0.000546,120]
[358103673,1744718972382,-2200.0,0.00054644,31]
[358103674,1744718972409,-579.3660229,0.000547,120]
[358103675,1744718972437,-150.47,0.000547,120]
[358103676,1744718972464,-150.0,0.00054742,120]
[358103677,1744718972493,-10000.0,0.00054748,60]
[358103678,1744718972521,-2000.0,0.0005479,30]
[358103679,1744718972549,-666.0,0.00054793,120]
[358103680,1744718972577,-666.0,0.00054793,120]
[358103681,1744718972605,-666.0,0.00054793,120]
[358103682,1744718972633,-666.0,0.00054793,120]
[358103683,1744718972660,-666.0,0.00054793,120]
[358103684,1744718972687,-666.0,0.00054793,120]
[358103685,1744718972717,-666.0,0.00054793,120]
[358103686,1744718972745,-666.0,0.00054793,120]
[358103687,1744718972772,-666.0,0.00054793,120]
[358103688,1744718972800,-666.0,0.00054793,120]
[358103689,1744718972829,-666.0,0.00054793,120]
[358103690,1744718972857,-666.0,0.00054793,120]
[358103691,1744718972886,-666.0,0.00054793,120]
[358103692,1744718972914,-500.0,0.00054794,120]
[358103693,1744718972942,-194.33693348,0.00054794,120]
[358103694,1744718972969,-500.0,0.00054794,120]
[358103695,1744718972998,-500.0,0.00054794,120]
[358103696,1744718973027,-500.0,0.00054794,120]
[358103697,1744718973057,-500.0,0.00054794,120]
[358103698,1744718973085,-500.0,0.00054794,120]
[358103699,1744718973114,-500.0,0.00054794,120]
[358103700,1744718973141,-500.0,0.00054794,120]
[358103701,1744718973170,-500.0,0.00054794,120]
[358103702,1744718973199,-500.0,0.00054794,120]
[358103703,1744718973227,-500.0,0.00054794,120]
[358103704,1744718973254,-500.0,0.00054794,120]
[358103705,1744718973281,-500.0,0.00054794,120]
[358103706,1744718973310,-500.0,0.00054794,120]
[358103707,1744718973338,-346.03397493,0.00054794,120]
[358103708,1744718973367,-542.61171456,0.00054794,120]
[358103709,1744718973396,-500.0,0.00054794,120]
[358103710,1744718973425,-500.0,0.00054794,120]
[358103711,1744718973452,-500.0,0.00054794,120]
[358103712,1744718973480,-570.19898656,0.00054794,120]
[358103713,1744718973510,-500.0,0.00054794,120]
[358103714,1744718973540,-1000.0,0.00054794,120]
[358103715,1744718973570,-500.0,0.00054794,120]
[358103716,1744718973601,-1000.0,0.00054794,120]
[358103717,1744718973630,-500.0,0.00054794,120]
[358103718,1744718973659,-779.58289116,0.00054794,120]
[358103719,1744718973689,-500.0,0.00054794,120]
[358103720,1744718973716,-500.0,0.00054794,120]
[358103721,1744718973747,-500.0,0.00054794,120]
[358103722,1744718973776,-500.0,0.00054794,120]
[358103723,1744718973807,-500.0,0.00054794,120]
[358103724,1744718973839,-500.0,0.00054794,120]
[358103725,1744718973869,-500.0,0.00054794,120]
[358103726,1744718973901,-500.0,0.00054794,120]
[358103727,1744718973931,-500.0,0.00054794,120]
[358103728,1744718973960,-500.0,0.00054794,120]
[358103729,1744718973992,-500.0,0.00054794,120]
[358103730,1744718974021,-618.77612734,0.00054794,120]
[358103731,1744718974051,-918.56,0.00054794,120]
[358103732,1744718974261,-918.56,0.00054794,120]
[358103733,1744718974291,-918.56,0.00054794,120]
[358103734,1744718974318,-918.56,0.00054794,120]
[358103735,1744718974346,-918.56,0.00054794,120]
[358103736,1744718974373,-918.56,0.00054794,120]
[358103737,1744718974401,-918.56,0.00054794,120]
[358103738,1744718974429,-918.56,0.00054794,120]
[358103739,1744718974457,-918.56,0.00054794,120]
[358103740,1744718974485,-918.56,0.00054794,120]
[358103741,1744718974511,-918.56,0.00054794,120]
[358103742,1744718974538,-918.56,0.00054794,120]
[358103743,1744718974566,-918.56,0.00054794,120]
[358103744,1744718974593,-918.56,0.00054794,120]
[358103745,1744718974620,-918.56,0.00054794,120]
[358103746,1744718974648,-918.56,0.00054794,120]
[358103747,1744718974676,-918.56,0.00054794,120]
[358103748,1744718974703,-918.56,0.00054794,120]
[358103749,1744718974730,-918.56,0.00054794,120]
[358103750,1744718974760,-918.56,0.00054794,120]
[358103751,1744718974788,-918.56,0.00054794,120]
[358103752,1744718974815,-918.56,0.00054794,120]
[358103753,1744718974841,-918.56,0.00054794,120]
[358103754,1744718974866,-918.7401816,0.00054794,120]
[358103755,1744718974893,-1044.7,0.00054794,120]
[358103756,1744718974921,-1044.7,0.00054794,120]
[358103757,1744718974950,-1044.7,0.00054794,120]
[358103758,1744718974978,-1044.7,0.00054794,120]
[358103759,1744718975010,-1044.7,0.00054794,120]
[358103760,1744718975039,-1044.7,0.00054794,120]
[358103761,1744718975066,-1044.7,0.00054794,120]
[358103762,1744718975096,-1044.7,0.00054794,120]
[358103763,1744718975123,-1044.7,0.00054794,120]
[358103764,1744718975151,-1044.7,0.00054794,120]
[358103765,1744718975178,-1044.7,0.00054794,120]
[358103766,1744718975204,-1044.7,0.00054794,120]
[358103767,1744718975231,-1044.7,0.00054794,120]
[358103768,1744718975257,-1044.7,0.00054794,120]
[358103769,1744718975284,-1044.7,0.00054794,120]
[358103770,1744718975312,-1044.7,0.00054794,120]
[358103771,1744718975339,-1044.7,0.00054794,120]
[358103772,1744718975367,-1044.7,0.00054794,120]
[358103773,1744718975394,-1044.7,0.00054794,120]
[358103774,1744718975421,-1044.7,0.00054794,120]
[358103775,1744718975448,-1044.7,0.00054794,120]
[358103776,1744718975476,-1044.7,0.00054794,120]
[358103777,1744718975504,-1044.7,0.00054794,120]
[358103778,1744718975531,-1044.78883537,0.00054794,120]
[358103779,1744718975559,-500.0,0.00054794,120]
[358103780,1744718975585,-500.0,0.00054794,120]
[358103781,1744718975611,-500.0,0.00054794,120]
[358103782,1744718975638,-222.8051241,0.00054794,120]
[358103783,1744718975666,-211.60959415,0.00054795,120]
[358103784,1744718975694,-150.0,0.00054795,120]
[358103785,1744718975721,-177.48899167,0.00054795,120]
[358103786,1744718975750,-150.0,0.00054795,120]
[358103787,1744718975805,150.0,0.0005407,120]
[358103788,1744718975859,150.0,0.00054243,120]
[358103789,1744718975904,150.0,0.000543,120]
[358103790,1744718975946,150.0,0.00054321,120]
[358103791,1744718975996,150.0,0.00054477,120]
[358103792,1744718976049,150.0,0.00054495,30]
[358103793,1744718976091,150.0,0.000545,120]
[358103794,1744718976124,150.0,0.0005452,34]
[358103924,1744719037549,-1293.27,0.00017736,2]
[358103925,1744719037559,-176.87,0.00017753,2]
[358103926,1744719037568,-250.0,0.0001777,2]
[358103927,1744719037578,-171.2208679,0.0001782,2]
[358103928,1744719037587,-2045.97278145,0.000179,2]
[358103929,1744719037597,-173.81361329,0.000179,2]
[358103930,1744719037607,-500.0,0.00017918,2]
[358103931,1744719037615,-1291.50475579,0.00017948,2]
[358103932,1744719037625,-300.0,0.00017972,2]
[358103933,1744719037635,-300.0,0.00017972,2]
[358103934,1744719037644,-692.0,0.00017973,2]
[358103935,1744719037653,-184.0,0.00017973,2]
[358103936,1744719037663,-2291.0,0.00017973,2]
[358103937,1744719037676,-2583.0,0.00017973,2]
[358103938,1744719037686,-500.53474454,0.00017973,2]
[358103939,1744719037695,-161.77303684,0.00017973,2]
[358103940,1744719037705,-500.0,0.00017973,2]
[358103941,1744719037714,-507.98354872,0.00017973,2]
[358103942,1744719037724,-500.0,0.00017973,2]
[358103943,1744719037733,-301.64424214,0.00017973,2]
[358103944,1744719037742,-502.72153642,0.00017973,2]
[358103945,1744719037752,-500.0,0.00017973,2]
[358103946,1744719037762,-403.44864785,0.00017973,2]
[358103947,1744719037772,-402.1447188,0.00017986,2]
[358103948,1744719037781,-5165.062464,0.00017986,2]
[358103949,1744719037791,-449.3285896,0.00017988,2]
[358103950,1744719037802,-496.5124604,0.00017988,2]
[358103951,1744719037812,-5771.0822089,0.00017988,2]
[358103952,1744719037822,-6377.1019538,0.00017988,2]
[358103953,1744719037832,-729.527,0.00017989,2]
[358103954,1744719037841,-344.48874434,0.0001799,2]
[358103955,1744719037853,-344.48874434,0.0001799,2]
[358103956,1744719037863,-344.48874434,0.0001799,2]
[358103957,1744719037874,-500.0,0.00017997,2]
[358103958,1744719037884,-500.0,0.00017997,2]
[358103959,1744719037894,-500.0,0.00017997,2]
[358103960,1744719037905,-500.0,0.00017997,2]
[358103961,1744719037916,-500.0,0.00017997,2]
[358103963,1744719037926,-500.0,0.00017997,2]
[358103965,1744719037936,-500.0,0.00017997,2]
[358103967,1744719037947,-500.0,0.00017997,2]
[358103968,1744719037957,-500.0,0.00017997,2]
[358103969,1744719037967,-500.0,0.00017997,2]
[358103970,1744719037977,-500.0,0.00017997,2]
[358103971,1744719037987,-500.0,0.00017997,2]
[358103972,1744719037996,-500.0,0.00017997,2]
[358103973,1744719038011,-500.0,0.00017997,2]
[358103974,1744719038021,-500.0,0.00017997,2]
[358103975,1744719038030,-500.0,0.00017997,2]
[358103976,1744719038040,-500.0,0.00017997,2]
[358103977,1744719038051,-500.0,0.00017997,2]
[358103978,1744719038061,-500.0,0.00017997,2]
[358103979,1744719038070,-500.0,0.00017997,2]
[358103980,1744719038080,-500.0,0.00017997,2]
[358103981,1744719038090,-213.89587466,0.00017997,2]
[358103982,1744719038100,-500.0,0.00017997,2]
[358103983,1744719038112,-500.0,0.00017997,2]
[358103984,1744719038122,-500.0,0.00017997,2]
[358103985,1744719038132,-500.0,0.00017997,2]
[358103986,1744719038142,-500.0,0.00017997,2]
[358103987,1744719038151,-524.63404989,0.00017997,2]
[358103988,1744719038161,-500.0,0.00017997,2]
[358103989,1744719038171,-500.0,0.00017997,2]
[358103990,1744719038181,-500.0,0.00017997,2]
[358103991,1744719038190,-500.0,0.00017997,2]
[358103992,1744719038200,-500.0,0.00017997,2]
[358103993,1744719038209,-500.0,0.00017997,2]
[358103994,1744719038219,-500.0,0.00017998,2]
[358103995,1744719038228,-500.0,0.00017998,2]
[358103996,1744719038238,-500.0,0.00017998,2]
[358103997,1744719038248,-500.0,0.00017998,2]
[358103998,1744719038258,-500.0,0.00017998,2]
[358103999,1744719038267,-10048.65097814,0.00017998,2]
[358104000,1744719038276,-500.0,0.00017998,2]
[358104001,1744719038286,-513.07947964,0.00017998,2]
[358104002,1744719038295,-179.83548135,0.00017998,2]
[358104003,1744719038304,-151.0,0.00017999,2]
[358104004,1744719038314,-500.0,0.00017999,2]
[358104005,1744719038323,-525.38405743,0.00017999,2]
[358104006,1744719038332,-463.03567596,0.00017999,2]
[358104007,1744719038342,-500.0,0.00017999,2]
[358104008,1744719038352,-243.45,0.00017999,2]
[358104009,1744719038362,-500.0,0.00017999,2]
[358104010,1744719038375,-500.0,0.00017999,2]
[358104011,1744719038385,-500.0,0.00017999,2]
[358104012,1744719038394,-388.87507812,0.00017999,2]
[358104013,1744719038404,-500.0,0.00017999,2]
[358104014,1744719038413,-500.0,0.00017999,2]
[358104015,1744719038423,-500.0,0.00017999,2]
[358104016,1744719038432,-500.0,0.00017999,2]
[358104017,1744719038441,-500.0,0.00017999,2]
[358104018,1744719038451,-500.0,0.00017999,2]
[358104019,1744719038460,-500.0,0.00017999,2]
[358104020,1744719038469,-500.0,0.00017999,2]
[358104021,1744719038479,-500.0,0.00017999,2]
[358104022,1744719038489,-500.0,0.00017999,2]
[358104023,1744719038498,-500.0,0.00017999,2]
[358104024,1744719038511,-500.0,0.00017999,2]
[358104025,1744719038520,-500.0,0.00017999,2]
[358104026,1744719038530,-500.0,0.00017999,2]
[358104027,1744719038540,-500.0,0.00017999,2]
[358104028,1744719038549,-500.0,0.00017999,2]
[358104029,1744719038558,-500.0,0.00017999,2]
[358104030,1744719038568,-500.0,0.00017999,2]
[358104031,1744719038577,-500.0,0.00017999,2]
[358104032,1744719038587,-500.0,0.00017999,2]
[358104033,1744719038596,-500.0,0.00017999,2]
[358104034,1744719038606,-500.0,0.00017999,2]
[358104035,1744719038615,-500.0,0.00017999,2]
[358104036,1744719038625,-500.0,0.00017999,2]
[358104037,1744719038635,-500.0,0.00017999,2]
[358104038,1744719038644,-555.40129222,0.00017999,2]
[358104039,1744719038654,-500.0,0.00017999,2]
[358104040,1744719038663,-500.0,0.00017999,2]
[358104041,1744719038674,-352.20317477,0.00017999,2]
[358104042,1744719038684,-164.96,0.00017999,2]
[358104043,1744719038694,-514.98,0.00017999,2]
[358104044,1744719038704,-508.9210108,0.00017999,2]
[358104045,1744719038713,-200.0,0.00017999,2]
[358104046,1744719038723,-500.0,0.00017999,2]
[358104047,1744719038733,-505.65946452,0.00017999,2]
[358104048,1744719038742,-500.0,0.00017999,2]
[358104049,1744719038752,-282.78264585,0.00017999,2]
[358104050,1744719038761,-187.75974797,0.00017999,2]
[358104051,1744719038771,-424.60796765,0.00017999,2]
[358104052,1744719038781,-500.0,0.00017999,2]
[358104053,1744719038790,-500.0,0.00017999,2]
[358104054,1744719038800,-629.98,0.00017999,2]
[358104055,1744719038810,-500.0,0.00017999,2]
[358104056,1744719038819,-500.0,0.00017999,2]
[358104057,1744719038829,-513.51151106,0.00017999,2]
[358104058,1744719038838,-358.6435958,0.00017999,2]
[358104059,1744719038847,-503.36067534,0.00017999,2]
[358104060,1744719038859,-537.34179468,0.00017999,2]
[358104061,1744719038869,-500.0,0.00017999,2]
[358104062,1744719038879,-500.0,0.00017999,2]
[358104063,1744719038888,-500.0,0.00017999,2]
[358104064,1744719038898,-500.0,0.00017999,2]
[358104065,1744719038908,-500.0,0.00017999,2]
[358104066,1744719038917,-500.0,0.00017999,2]
[358104067,1744719038926,-500.0,0.00017999,2]
[358104068,1744719038936,-500.18897332,0.00017999,2]
[358104069,1744719038946,-500.0,0.00017999,2]
[358104070,1744719038955,-500.0,0.00017999,2]
[358104071,1744719038964,-500.0,0.00017999,2]
[358104072,1744719038974,-500.0,0.00017999,2]
[358104073,1744719038984,-527.84307565,0.00017999,2]
[358104074,1744719038994,-500.0,0.00017999,2]
[358104075,1744719039004,-525.99799707,0.00017999,2]
[358104076,1744719039015,-509.40255653,0.00017999,2]
[358104077,1744719039024,-500.0,0.00017999,2]
[358104078,1744719039034,-500.0,0.00017999,2]
[358104079,1744719039044,-500.0,0.00017999,2]
[358104080,1744719039056,-626.18646801,0.00017999,2]
[358104081,1744719039067,-553.05804531,0.00017999,2]
[358104082,1744719039076,-500.0,0.00017999,2]
[358104083,1744719039085,-514.68407597,0.00017999,2]
[358104084,1744719039097,-500.0,0.00017999,2]
[358104085,1744719039109,-500.0,0.00017999,2]
[358104086,1744719039119,-500.0,0.00017999,2]
[358104087,1744719039128,-500.0,0.00017999,2]
[358104088,1744719039138,-1385.0,0.00018,2]
[358104089,1744719039148,-150.0,0.00018,2]
[358104090,1744719039157,-113879.78519334,0.00018,2]
[358104091,1744719039171,-210508.47879598,0.00018,2]
[358104092,1744719039182,-631.2,0.00018,2]
[358104093,1744719039194,-339.0506977,0.00018,2]
[358104094,1744719039212,-500.0,0.00017999,2]
[358104095,1744719039221,-16380.12199998,0.00018,2]
[358104097,1744719039640,-500.0,0.00017999,2]
[358104098,1744719039651,-500.0,0.00017999,2]
[358104099,1744719039661,-500.0,0.00017999,2]
[358104100,1744719039671,-6.0,0.00017999,2]
[358104101,1744719039798,-494.0,0.00017999,2]
[358104102,1744719039808,-500.0,0.00017999,2]
[358104103,1744719039818,-448.12179042,0.00017999,2]
[358104104,1744719039827,-341844.83148017,0.00018,2]
[358104120,1744719044600,-600.0,0.00018,2]
[358104124,1744719045455,-283.28648373,0.00018,2]
[358104125,1744719045510,-4004.13373081,0.00018,2]
[358104126,1744719045521,-501.91456009,0.00018,2]
[358104127,1744719045773,-782.68279264,0.00018,2]
[358104131,1744719115175,-171.2208679,0.0001782,2]
[358104132,1744719115200,-498.23265996,0.000179,2]
[358104133,1744719115223,-463.03567596,0.00017999,2]
[358104134,1744719115245,-300.0,0.00017999,2]
[358104135,1744719115269,-500.0,0.00017999,2]
[358104136,1744719115293,-243.45,0.00017999,2]
[358104137,1744719115317,-500.0,0.00017999,2]
[358104138,1744719115340,-500.0,0.00017999,2]
[358104139,1744719115364,-573.57,0.00017999,2]
[358104140,1744719115387,-500.0,0.00017999,2]
[358104141,1744719115409,-500.0,0.00017999,2]
[358104142,1744719115432,-500.0,0.00017999,2]
[358104143,1744719115456,-500.0,0.00017999,2]
[358104144,1744719115479,-500.0,0.00017999,2]
[358104145,1744719115501,-500.0,0.00017999,2]
[358104146,1744719115522,-500.0,0.00017999,2]
[358104147,1744719115544,-1147.0,0.00018,2]